Cogmind - Beta 15 @@@ ROGUE MODE // 2025.05.12 @ 14:28:15 Player: Fonjavters Result: Self-destructed Performance ------------- Evolutions (2) 1000 Regions Visited (3) 600 Robots Destroyed (41) 205 Value Destroyed (850) 850 Prototype IDs (1) 20 Alien Tech Used (0) 0 Bonus (0) 0 TOTAL SCORE: 2675 Bonus ------- None Cogmind --------- Core Integrity 516/550 Matter 253/300 Energy 100/100 System Corruption 4% Temperature Cool (0) Movement Core (400) Ox7 Location -8/Materials Parts ------- > --- POWER (1) -------- (None) > --- PROPULSION (3) --- (None) > --- UTILITY (5) ------ Medium Storage Unit Hardened Light Armor Plating Hacking Suite > --- WEAPON (2) ------- Improved Medium Laser Improved Light Cannon > --- INVENTORY (10) --- Light Ion Engine High-capacity Storage Unit Large Battery (200) ECM Suite Improved Medium Laser Assault Rifle Improved Light Cannon Improved Light Cannon Grenade Launcher Hammer Peak State ------------ > --- POWER ------------ Light Ion Engine > --- PROPULSION ------- Aluminum Leg Aluminum Leg Aluminum Leg > --- UTILITY ---------- Medium Storage Unit Hardened Light Armor Plating Hacking Suite > --- WEAPON ----------- Improved Medium Laser Improved Medium Laser > --- INVENTORY -------- High-capacity Storage Unit Large Battery ECM Suite Assault Rifle Improved Light Cannon Improved Light Cannon Grenade Launcher Hammer [Rating: 17] Favorites ----------- Power Light Ion Engine Engine Light Ion Engine Propulsion Aluminum Leg Leg Aluminum Leg Utility Seismic Detector Device Seismic Detector Storage Small Storage Unit Processor Targeting Computer Hackware Hacking Suite Protection Hardened Light Armor Plating Weapon Improved Medium Laser Energy Gun Improved Medium Laser Ballistic Gun Assault Rifle Ballistic Cannon Improved Light Cannon Build | -11 -10 -9 -8 ------- Run | Yrd Mat Mat Mat Slots Evolved 4 | . . 2 2 Power . | . . . . Propulsion 1 | . . 1 . Utility 3 | . . 1 2 Weapon . | . . . . Parts Attached 22 | 7 6 9 . Power 4 | 1 1 2 . Engine 4 | 1 1 2 . Core . | . . . . Reactor . | . . . . Propulsion 5 | 2 2 1 . Treads . | . . . . Leg 5 | 2 2 1 . Wheel . | . . . . Hover . | . . . . Flight . | . . . . Utility 6 | 2 1 3 . Device 1 | 1 . . . Storage 2 | 1 1 . . Processor 1 | . . 1 . Hackware 1 | . . 1 . Protection 1 | . . 1 . Artifact . | . . . . Weapon 7 | 2 2 3 . Energy Gun 2 | . 2 . . Energy Cannon . | . . . . Ballistic Gun 2 | 2 . . . Ballistic Cannon 3 | . . 3 . Launcher . | . . . . Special Weapon . | . . . . Impact Weapon . | . . . . Slashing Weapon . | . . . . Piercing Weapon . | . . . . Special Melee Weapon . | . . . . Unidentified Prototypes 1 | . 1 . . Parts Lost 7 | . . 3 4 Power 2 | . . 1 1 Propulsion 3 | . . . 3 Utility 2 | . . 2 . Weapon . | . . . . Highest Loss Streak 4 | . . 3 4 To Critical Strikes . | . . . . Average Backups 7 | 2 7 7 10 Power . | 1 . . 1 Propulsion . | . . . . Utility 3 | . 4 3 3 Weapon 2 | 1 1 3 6 Tool/Special . | . . . . Unused Backups 7 | . 2 . 5 Power . | . . . . Propulsion . | . . . . Utility 4 | . 1 . 3 Weapon 3 | . 1 . 2 Tool/Special . | . . . . Average Slot Usage (%) 91 | . 99 96 53 Engine 11 | . 13 10 2 Leg 25 | . 28 33 6 Device 9 | . 14 1 . Storage 12 | . 14 11 9 Hackware 2 | . . 7 9 Protection 2 | . . 8 9 Energy Gun 13 | . 14 20 6 Ballistic Gun 9 | . 13 . . Ballistic Cannon 2 | . . 1 11 Peak Build Rating 17 | 7 12 17 15 Average Rating 10 | 4 9 15 12 On Entrance 8 | . 7 12 15 Naked Turns . | . . . . Heaviest Build 28 | 12 20 28 28 Greatest Support 30 | 20 20 30 30 Greatest Overweight (x) 7 | . . . 7 Average Overweight (x) . | . . . 4 Largest Inventory Capacity 10 | 8 10 10 10 Average Capacity 8 | 7 8 10 10 Most Carried 10 | 5 8 10 10 Average Carried 7 | 2 7 7 10 Final Capacity 10 | 8 10 10 10 Final Carried 10 | 2 8 10 10 Class Distribution -------------------- 84% | Mutant 15% | Scavenger-Mutant Dominant Class ---------------- Mutant | -10/Materials Scavenger-Mutant | -9/Materials Mutant | -8/Materials Resources | -11 -10 -9 -8 ----------- Run | Yrd Mat Mat Mat Matter Collected 656 | 300 174 54 128 Remotely . | . . . . Salvage Created 1188 | 143 501 452 92 Parts 81 | 9 41 26 5 Haulers Intercepted 1 | . . 1 . Recyclers Shooed 2 | 1 . . 1 Parts Field Recycled . | . . . . Retrieved Matter . | . . . . Parts Self-Destructed . | . . . . Prevented . | . . . . Kills | -11 -10 -9 -8 ------- Run | Yrd Mat Mat Mat Combat Hostiles Destroyed 28 | . 19 6 3 Guns 25 | . 19 5 1 Cannons 2 | . . . 2 Classes Destroyed 10 | 2 4 4 . Builder 3 | . . 2 1 Tunneler 3 | 3 . . . Hauler 1 | . . 1 . Recycler 2 | 1 . 1 . Operator 2 | . 2 . . Watcher 2 | . 2 . . Swarmer 12 | . 12 . . Grunt 12 | . 7 3 2 Brawler 2 | . . 1 1 Sentry 2 | . . 2 . Best Kill Streak 6 | 4 6 3 4 Combat Bots Only 6 | . 6 2 3 Max Kills in Single Turn 2 | 1 2 2 2 Gunslinging 1 | . 1 . . Exploded . | . . . . Melee . | . . . . Uniques/NPCs Destroyed . | . . . . Combat | -11 -10 -9 -8 -------- Run | Yrd Mat Mat Mat Hostile Shots Fired 124 | . 51 38 35 Missed 25 | . 10 4 11 Hits 99 | . 41 34 24 Melee 5 | . . 2 3 Projectile 94 | . 41 32 21 Critical Strikes 1 | . . 1 . Damage Taken 1205 | . 379 440 386 Core 162 | . 75 53 34 Absorbed by Shields . | . . . . Regen/Repaired (Parts) 39 | . 39 . . Core Remaining (%) 85 | 100 70 86 . Volleys Fired 105 | 10 49 30 16 Largest 2 | 2 2 2 2 Hottest 112 | 40 112 112 66 Shots Fired 204 | 20 98 58 28 Gun 180 | 20 98 58 4 Cannon 24 | . . . 24 Launcher . | . . . . Special . | . . . . Kinetic 98 | 20 54 . 24 Thermal 106 | . 44 58 4 Explosive . | . . . . Electromagnetic . | . . . . Robot Hit Streak 12 | 6 12 5 3 Robot Miss Streak 4 | 1 3 4 3 Penetration Max . | . . . . Secondary Targets 3 | . 2 1 . Max Gunslinging Chain 1 | . 1 1 . Shots Hit Robots 108 | 13 52 29 14 Core Hits 54 | 5 30 12 7 Critical Kills 1 | 1 . . . Critical Parts Destroyed . | . . . . Critical Strikes 9 | 1 3 4 1 Burn 7 | . 3 4 . Destroy 1 | 1 . . . Blast 1 | . . . 1 Melee Attacks . | . . . . Impact . | . . . . Slashing . | . . . . Piercing . | . . . . Sneak Attacks . | . . . . Combat Hostiles . | . . . . Follow-up Attacks . | . . . . Damage Inflicted 1755 | 144 750 537 324 Guns 1439 | 144 727 534 34 Cannons 290 | . . . 290 Explosions . | . . . . Melee . | . . . . Ramming 26 | . 23 3 . Kinetic 739 | 144 305 . 290 Thermal 990 | . 422 534 34 Explosive . | . . . . Electromagnetic . | . . . . Impact . | . . . . Slashing . | . . . . Piercing . | . . . . Highest Corruption 12 | . . 12 4 Average Corruption 7 | . . 11 4 Corruption Purged . | . . . . Corruption Blocked . | . . . . Effects 22 | . . 13 9 Message Errors 3 | . . 2 1 Matter Fused 8 | . . 3 5 Heat Flow Errors 2 | . . 1 1 Energy Discharges 3 | . . 2 1 Parts Rejected 1 | . . 1 . Data Loss (minor) 1 | . . . 1 Data Loss (major) 1 | . . 1 . Misdirections 1 | . . 1 . Weapon Failures 2 | . . 2 . Overload Shots . | . . . . Overflow Damage . | . . . . Projectiles . | . . . . Explosions . | . . . . Melee . | . . . . Knockbacks 1 | . . . 1 Impact . | . . . . Kinetic 1 | . . . 1 Secondary . | . . . . Self-Inflicted Damage . | . . . . Shots . | . . . . Rammed . | . . . . Targets Rammed 5 | . 4 1 . Kicked 5 | . 4 1 . Crushed . | . . . . Highest Temperature 390 | . 313 390 197 Average Temperature 119 | . 108 138 81 Received Heat Transfer 459 | . 102 195 162 Effects 2 | . 1 1 . Energy Bleed 1 | . 1 . . Interference 1 | . . 1 . Siege Activations . | . . . . Martial Activations . | . . . . Shielding Activations . | . . . . Robots Disrupted . | . . . . Combat Hostiles . | . . . . Robots Corrupted . | . . . . Combat Hostiles . | . . . . Parts Fried . | . . . . Impact Corruptions . | . . . . Robots Melted 1 | . . 1 . Combat Hostiles 1 | . . 1 . Parts Melted 4 | . 1 3 . Heat Transferred 2664 | . 1147 1443 74 Parts Sabotaged . | . . . . Parts Stolen . | . . . . Parts Stripped . | . . . . Power Chain Reactions . | . . . . Alert | -11 -10 -9 -8 ------- Run | Yrd Mat Mat Mat Maximum Alert Level 1 | . 1 . . Low Security (%) 94 | 100 91 100 100 Level 1 5 | . 8 . . Level 2 . | . . . . Level 3 . | . . . . Level 4 . | . . . . Level 5 . | . . . . High Security . | . . . . Max Security . | . . . . Peak Influence 222 | 10 222 185 65 Initial 80 | . . 80 65 Average 63 | 1 69 114 17 Influence Increases 927 | 20 556 275 76 Destroy 0b10 Robot/C 560 | . 380 120 60 Destroy 0b10 Robot/NC 65 | 20 20 20 5 Destroy Leader 136 | . 84 42 10 Successful Hack 41 | . 25 16 . Disable Machine 30 | . . 30 . Destroy Structure 5 | . 2 2 1 Lose Combat Pursuer 90 | . 45 45 . Influence Decreases 927 | 20 364 312 231 Entered New Map 202 | . . 112 90 Time Decay 655 | 20 364 170 101 Lost Part 70 | . . 30 40 Squads Dispatched 6 | . 4 2 . Investigation 3 | . 2 1 . Extermination . | . . . . Reinforcement 3 | . 2 1 . Assault . | . . . . Garrison . | . . . . Intercept . | . . . . Searches Triggered . | . . . . Construction Impeded . | . . . . Haulers Reinforced . | . . . . Active Scanning Responses . | . . . . Cargo Convoy Interrupts . | . . . . Stealth | -11 -10 -9 -8 --------- Run | Yrd Mat Mat Mat Distress Signals 1 | . 1 . . Communications Jammed . | . . . . Distress Signals . | . . . . Times Spotted 53 | . 31 15 7 Peak Tracking Total 5 | . 4 5 3 Tactical Retreats 4 | . 2 2 . Traps | -11 -10 -9 -8 ------- Run | Yrd Mat Mat Mat Traps Triggered 1 | . 1 . . Indirectly . | . . . . Trap Hack Attempts . | . . . . Triggered . | . . . . Disarmed . | . . . . Reprogrammed . | . . . . Reused . | . . . . Traps Extracted . | . . . . Installed . | . . . . Triggered . | . . . . Machines | -11 -10 -9 -8 ---------- Run | Yrd Mat Mat Mat Machines Disabled 2 | . . 2 . Max in Single Turn 1 | . . 1 . Machines Repaired . | . . . . Machines Dismantled . | . . . . Machines Sabotaged . | . . . . Overloaded Fab Kills . | . . . . Hacking | -11 -10 -9 -8 --------- Run | Yrd Mat Mat Mat Machines Accessed 11 | . 9 2 . Terminals 8 | . 6 2 . Fabricators . | . . . . Repair Stations 1 | . 1 . . Recycling Units 2 | . 2 . . Scanalyzers . | . . . . Garrison Access . | . . . . Total Hacks 39 | . 33 6 . Successful 24 | . 22 2 . Failed 15 | . 11 4 . Catastrophic . | . . . . Database Lockouts . | . . . . Manual 25 | . 19 6 . Terminals 30 | . 24 6 . Fabricators . | . . . . Repair Stations 5 | . 5 . . Recycling Units 4 | . 4 . . Scanalyzers . | . . . . Garrison Access . | . . . . Terminal Hacks 3 | . 3 . . Branch Access Points 1 | . 1 . . Alert Level 1 | . 1 . . Hauler Manifests 1 | . 1 . . Fabricator Hacks . | . . . . Repair Station Hacks 3 | . 3 . . Scan Component 2 | . 2 . . Repair 1 | . 1 . . Recycling Unit Hacks 4 | . 4 . . Report Inventory 2 | . 2 . . Retrieve Matter 1 | . 1 . . Retrieve Components 1 | . 1 . . Scanalyzer . | . . . . Garrison Access Hacks . | . . . . Unauthorized Hacks 13 | . 11 2 . Terminals 13 | . 11 2 . Botnet 5 | . 5 . . Skim 8 | . 6 2 . Fabricators . | . . . . Repair Stations . | . . . . Recycling Units . | . . . . Scanalyzers . | . . . . Garrison Access . | . . . . Data Cores Recovered . | . . . . Used . | . . . . Hacking Detections 8 | . 7 1 . Full Trace Events 2 | . 1 1 . Feedback Events 1 | . . 1 . Corruption 1 | . . 1 . Feedback Blocked . | . . . . Robot Schematics Acquired . | . . . . Robots Built . | . . . . Authchips . | . . . . Time . | . . . . Total Robot Build Rating . | . . . . Part Schematics Acquired . | . . . . Parts Built . | . . . . Authchips . | . . . . Time . | . . . . Total Part Build Rating . | . . . . Parts Repaired 1 | . 1 . . Time 26 | . 26 . . Parts Recycled . | . . . . Recycled Matter . | . . . . Retrieved Matter . | . . . . Retrieved Components 1 | . 1 . . Parts Scanalyzed . | . . . . Part Schematics Acquired . | . . . . Parts Damaged . | . . . . Bothacking | -11 -10 -9 -8 ------------ Run | Yrd Mat Mat Mat Used RIF Installer . | . . . . Robots Hacked . | . . . . Non-combat . | . . . . Combat . | . . . . Robot Hacks Applied . | . . . . Relay Couplers Released . | . . . . Fabnet Peak Effective % . | . . . . Robots Rewired . | . . . . Allies Hacked . | . . . . Hacks Repelled . | . . . . Allies | -11 -10 -9 -8 -------- Run | Yrd Mat Mat Mat Total Allies . | . . . . Largest Group . | . . . . Highest-Rated Group . | . . . . Highest-Rated Ally . | . . . . Total Orders . | . . . . Ally Attacks . | . . . . Total Damage . | . . . . Kills . | . . . . Allies Corrupted . | . . . . Allies Melted . | . . . . Intel | -11 -10 -9 -8 ------- Run | Yrd Mat Mat Mat Active Infowar (turns) 1838 | 4 1789 45 . Seismic 1838 | 4 1789 45 . Robot Analysis Total . | . . . . Derelict Logs Recovered . | . . . . Drone Launches . | . . . . Drone Recoveries . | . . . . Exploration | -11 -10 -9 -8 ------------- Run | Yrd Mat Mat Mat Turns Passed 2675 | 122 1789 341 423 Spaces Moved 1109 | 71 744 174 120 Core 85 | 8 . . 77 Treads . | . . . . Legs 1024 | 63 744 174 43 Wheels . | . . . . Hover . | . . . . Flight . | . . . . Fastest Speed 50 | 50 120 120 120 Average Speed 139 | 112 120 120 300 Slowest Speed 400 | 120 120 120 400 Overloaded Moves . | . . . . Propulsion Burnouts . | . . . . Robots Hopped . | . . . . Potential Cave-ins . | . . . . Cave-ins Triggered . | . . . . Exploration Rate (%) 31 | 4 95 23 5 Regions Visited 3 Branch Regions . Pre-discovered Areas 2 | . 2 . . Known Exits Taken 2 | . 1 1 . Unknown Exits Taken 1 | 1 . . . Scrap Searched . | . . . . Spaces Dug . | . . . . Terrain Destroyed . | . . . . Melee . | . . . . Projectile . | . . . . AOE . | . . . . Terrain Rammed . | . . . . Walls Destroyed . | . . . . Machines Disabled . | . . . . Actions | -11 -10 -9 -8 --------- Run | Yrd Mat Mat Mat Total 2039 | 95 1549 242 153 Wait 766 | . 729 21 16 Move 1106 | 70 743 173 120 Hop . | . . . . Pick Up 24 | 8 9 7 . Fast Attach 5 | 1 3 1 . Attach 11 | 6 . 5 . Detach . | . . . . Swap 9 | . 4 4 1 Drop 8 | . 8 . . Fire 105 | 10 49 30 16 Melee . | . . . . Ram . | . . . . Kick 5 | . 4 1 . Crush . | . . . . Escape Stasis . | . . . . Rewire . | . . . . Trap . | . . . . Miscellaneous . | . . . . Route ------- -11/Scrapyard -10/Materials (discovered 5 exits: *Mat x3 / *Min / *Sub) -9/Materials (discovered 4 exits: *Mat x2 / [*Min] / Sto) -8/Materials History --------- Turn | Location | Event 10 | -11/Scrapyard | Discovered new exit (range 15) 123 | -11/Scrapyard | Entered Materials 125 | -10/Materials | Identified exit to Mines 311 | -10/Materials | Build established: Mutant 860 | -10/Materials | Discovered new exit (range 7) 1040 | -10/Materials | Discovered new exit (range 10) 1122 | -10/Materials | Discovered new exit (range 8) 1497 | -10/Materials | Discovered new exit (range 5) 1561 | -10/Materials | Repaired Lgt. Ion Engine 1704 | -10/Materials | Identified exit to Materials 1704 | -10/Materials | Identified exit to Subcaves 1727 | -10/Materials | Learned location of Mines (-10) 1739 | -10/Materials | Learned Storage security intel 1742 | -10/Materials | Learned Storage emergency access door positions 1743 | -10/Materials | Learned location of 2 exits from Mines 1912 | -10/Materials | Entered another Materials area 1912 | -9/Materials | Evolved 2 slots: Propulsion x1, Utility x1 1913 | -9/Materials | Identified exit to Materials 1913 | -9/Materials | Identified exit to Storage 1963 | -9/Materials | System corruption reached 10% 1993 | -9/Materials | Lost 3 parts (1p2u) 2005 | -9/Materials | Discovered new exit (range 12) 2253 | -9/Materials | Entered another Materials area 2253 | -8/Materials | Evolved 2 slots: Utility x2 2288 | -8/Materials | Build established: Scavenger-Mutant 2384 | -8/Materials | Lost 4 parts (1p3n) 2626 | -8/Materials | Build established: Mutant 2676 | -8/Materials | Self-destructed Last Messages --------------- 02378_ Acquired 14 matter. 02382_ Acquired 7 matter. 02388_ K-01 Serf collects debris. 02388_ Acquired 13 matter. 02393_ K-01 Serf collects debris. 02406_ System corrupted: Matter fused (-6). 02408_ K-01 Serf collects debris. 02413_ R-06 Scavenger collects Structural Scanner. 02416_ R-06 Scavenger collects Terrain Scan Processor. 02419_ R-06 Scavenger collects Lgt. Ion Engine. 02426_ System corrupted: Matter fused (-9). 02448_ System corrupted: Matter fused (-8). 02592_ Acquired 10 matter. 02596_ Acquired 2 matter. 02603_ E IGEG0EPK, DM7RPHJ1377X:ND: 7Q<= 02604_ Acquired 11 matter. 02623_ System corrupted: Matter fused (-8). 02642_ System corrupted: Component data lost. Map ----- +----------------------------------------------------+ | ????????????????????????????????????? | | ????????????????????????????????????? | | ????????????????????????????????????? | | ????????????????????????????????????? | | ????????????????????????????????????? | | ????????????????????????????????????? | | ????????????????????????????????????? | | ????????????????????????????????????? | | ????????????????????????????????????? | | ????????????????????????????????????? | | ????????????????????????????????????? | | ????????????????????????????????????? | | ????????????????????????????????????? | | ????????????????????????????????????? | | ????????????????????????????????????? | | ????????????????????????????????????? | | ????????????????????????????????????? | | ????????????????????????????????????? | | ????????????????????????????????????? | | ????????????????????????????????????? | | ????????????????????????????????????? | | ??????????############### #???????? | | ??????????# ssg #???????? | | ??????????# #???????? | | ??????????#% #???????? | | ??????????# @ ######### ###???????? | | ??????????# #????????? #?????????? | | ??????????# #?????????? #?????????? | | ??????????# #???????????#?????????? | | ??????????# #?????????????????????? | | ??????????# #?????????????????????? | | ??????????# #?????????????????????? | | ??????????# #?????????????????????? | | ??????????# #?????????????????????? | | ??????????# #?????????????????????? | | ??????????# #?????????????????????? | | ???######## #?????????????????????? | | ???# # #?????????????????????? | | ???# # #?????????????????????? | | ???# """ + #?????????????????????? | | ???# """ # #?????????????????????? | | ???# """ # #?????????????????????? | | ???# %# #?????????????????????? | | ???######## #?????????????????????? | | ??????????# #?????????????????????? | | ??????????# #?????????????????????? | | ??????????# #?????????????????????? | | ??????????# #?????????????????????? | | ??????????# #?????????????????????? | | ??????????# #?????????????????????? | +----------------------------------------------------+ Best States ------------- Heat Dissipation 31 Energy Generation 10 Energy Capacity 250 Matter Stores 300 Matter Capacity 300 Sight Range 16 Terrain Scan Density 10 Armor Coverage 150 Evasion (%) 55 Targeting Accuracy 5 Offensive Hacking 10 Item Schematics ----------------- None Robot Schematics ------------------ None Fabricated ------------ Nothing Repaired ---------- Lgt. Ion Engine | 2% | -10/Materials Alien Tech Used ----------------- None Achievements -------------- None Challenges ------------ None Game ------ Seed MultireflexCompactTurbovents Manual? 0 Play Time 00:18:12 Cumulative 27.1 hours Start 2025.05.12 @ 14:09:17 End 2025.05.12 @ 14:28:15 Sessions 1 Manual Loads 0 Difficulty Rogue Special Mode None Game No. 39 Rogue 39 Adventurer 0 Explorer 0 Win Type - Total 1 Types 1/0/0/0/0/0/0/0/0/0 Lore% 31 Gallery% 24 Achievement% 31 Wizard Run 0 Options --------- Layout 1 ASCII 0 Keyboard 0 Movement Mouse Keybinds 0 Fullscreen 1 Font 24/Smallcaps Map View 50x35 Zoom Use 0% Tactical HUD 1 Map Filters NONE Filters NONE Steam 1 RUN: e9093d2b-047f-401a-a2a4-a7a6d8f538c9